{"text_format":"3","workbook":"xlsx","n_sheets":8,"sheets":["Arbre généalogique","Parents","GrandsPaternal Grandparents","Grands-parents maternels","Arrière-grands-parents pater. 1","Arrière-grands-parents pater. 2","Arrière-grands-parents mater. 1","Arrière-grands-parents mater. 2"],"not_rendered":{"images":16,"defined_names":97},"read":"whole","date_system":"1900"}

{"sheet":"Arbre généalogique","index":0,"n_rows":34,"n_cols":14,"rows_kept":34,"merged":[[2,1,3,4],[3,13,3,14],[4,10,4,11],[5,13,5,14],[6,7,6,8],[7,13,7,14],[8,10,8,11],[9,13,9,14],[10,4,10,5],[11,13,11,14],[12,10,12,11],[13,13,13,14],[14,7,14,8],[15,13,15,14],[16,10,16,11],[17,13,17,14],[18,1,18,2],[19,13,19,14],[20,10,20,11],[21,13,21,14],[22,7,22,8],[23,13,23,14],[24,10,24,11],[25,13,25,14],[26,4,26,5],[27,13,27,14],[28,10,28,11],[29,13,29,14],[30,7,30,8],[31,13,31,14],[32,10,32,11],[33,13,33,14]]}
[]
[null,"Dupont - Jensen"]
[null,"ARBRE GÉNÉALOGIQUE"]
[{"$nulls":13},"Arrière-arrière-grand-père paternel 1 "]
[{"$nulls":10},"Arrière-grand-père paternel 1   "]
[{"$nulls":13},"Arrière-arrière-grand-mère paternelle 1 "]
[{"$nulls":7},"Jean-François Dupont"]
[{"$nulls":13},"Arrière-arrière-grand-père paternel 2 "]
[{"$nulls":10},"Arrière-grand-mère paternelle 1 "]
[{"$nulls":13},"Arrière-arrière-grand-mère paternelle 2 "]
[{"$nulls":4},"Roger Dupont"]
[{"$nulls":13},"Arrière-arrière-grand-père paternel 3 "]
[{"$nulls":10},"Arrière-grand-père paternel 2   "]
[{"$nulls":13},"Arrière-arrière-grand-mère paternelle 3 "]
[{"$nulls":7},"Laure Goudiard du Mesnil"]
[{"$nulls":13},"Arrière-arrière-grand-père paternel 4 "]
[{"$nulls":10},"Arrière-grand-mère paternelle 2 "]
[{"$nulls":13},"Arrière-arrière-grand-mère paternelle 4 "]
[null,"Aurélie Dupont"]
[{"$nulls":13},"Arrière-arrière-grand-père maternel 1 "]
[{"$nulls":10},"Arrière-grand-père maternel 1  "]
[{"$nulls":13},"Arrière-arrière-grand-mère maternelle 1 "]
[{"$nulls":7},"Thomas Søndergaard Jensen"]
[{"$nulls":13},"Arrière-arrière-grand-père maternel 2 "]
[{"$nulls":10},"Arrière-grand-mère maternelle 1 "]
[{"$nulls":13},"Arrière-arrière-grand-père maternel 3 "]
[{"$nulls":4},"Christiane Rønnow Jensen"]
[{"$nulls":13},"Arrière-arrière-grand-mère maternelle 3 "]
[{"$nulls":10},"Arrière-grand-père maternel 2  "]
[{"$nulls":13},"Arrière-arrière-grand-mère maternelle 3 "]
[{"$nulls":7},"Charlotte Louis"]
[{"$nulls":13},"Arrière-arrière-grand-père maternel 4 "]
[{"$nulls":10},"Arrière-grand-mère maternelle 2 "]
[{"$nulls":13},"Arrière-arrière-grand-mère maternelle 4 "]

{"sheet":"Parents","index":1,"n_rows":32,"n_cols":8,"rows_kept":32,"merged":[[9,1,9,3],[9,5,9,7],[10,2,10,3],[10,6,10,7],[11,2,11,3],[11,6,11,7],[12,2,12,3],[12,6,12,7],[13,2,13,3],[14,2,14,3],[14,6,14,7],[15,2,15,3],[15,6,15,7],[19,1,19,7],[20,1,20,7],[21,1,21,7],[22,1,22,7],[23,1,23,7],[24,1,24,7],[25,1,25,7]]}
[null,{"$f":"NomArbre","v":"Dupont - Jensen"}]
[null,"ARBRE GÉNÉALOGIQUE"]
[]
[]
[null,"PARENTS DU PÈRE",{"$nulls":3},"PARENTS DE LA MÈRE"]
[]
[]
[]
[]
[null,{"$f":"\"Père: \"&Père","v":"Père: Roger Dupont"},{"$nulls":3},{"$f":"\"Mère: \"&Mère","v":"Mère: Christiane Rønnow Jensen"}]
[null,null,"NAISSANCE",{"$nulls":3},"NAISSANCE"]
[null,null,"11 février 1948",{"$nulls":3},"13 février 1953"]
[null,null,"Lille, France",{"$nulls":3},"Danemark"]
[null,null,"DÉCÈS",{"$nulls":3},"DÉCÈS"]
[]
[]
[]
[]
[null," Notes"]
[null,"Mariés à Toulouse en novembre 1980."]
{"$rows_empty":7}
[null,"ENFANTS","NOM","LIENS","NAISSANCE","LIEU DE NAISSANCE","DÉCÈS","LIEU DE DÉCÈS"]
[null,null,{"$f":"Accueil","v":"Aurélie Dupont"},"Fille","23 janvier 1983","Paris"]
[null,null,"Roger Dupont","Fils","20 avril 1985","Paris"]
[null,null,"Marc Dupont","Fils","19 janvier 1987","Paris"]
[null,null,"Jean-Charles Dupont","Fils","11 octobre 1990","Paris"]

{"sheet":"GrandsPaternal Grandparents","index":2,"n_rows":33,"n_cols":8,"rows_kept":33,"merged":[[9,1,9,3],[9,5,9,7],[10,2,10,3],[10,6,10,7],[11,2,11,3],[11,6,11,7],[12,2,12,3],[12,6,12,7],[13,2,13,3],[14,2,14,3],[14,6,14,7],[15,2,15,3],[15,6,15,7],[20,1,20,7],[21,1,21,7],[22,1,22,7],[23,1,23,7],[24,1,24,7],[25,1,25,7],[26,1,26,7]]}
[null,{"$f":"NomArbre","v":"Dupont - Jensen"}]
[null,"ARBRE GÉNÉALOGIQUE"]
[]
[]
[null,"PARENTS DU PÈRE",{"$nulls":3},"PARENTS DE LA MÈRE"]
[]
[]
[]
[]
[null,{"$f":"\"Père: \"&GrandPèrePaternel","v":"Père: Jean-François Dupont"},{"$nulls":3},{"$f":"\"Mère: \"&GrandMèrePaternelle","v":"Mère: Laure Goudiard du Mesnil"}]
[null,null,"NAISSANCE",{"$nulls":3},"NAISSANCE"]
[null,null,"3 mars 1906",{"$nulls":3},"11 novembre 1925"]
[null,null,"Lille, France",{"$nulls":3},"France"]
[null,null,"DÉCÈS",{"$nulls":3},"DÉCÈS"]
[null,null,"17 juin 1991",{"$nulls":3},"4 mars 2005"]
[null,null,"Paris, France",{"$nulls":3},"Paris, France"]
[]
[]
[]
[null," Notes"]
[null,"Mariés à Lille en avril 1940."]
[null,"Laure a déménagé avec ses parents à Paris en 1955."]
[]
[]
[]
[]
[]
[]
[null,"ENFANTS","NOM","LIENS","NAISSANCE","LIEU DE NAISSANCE","DÉCÈS","LIEU DE DÉCÈS"]
[null,null,{"$f":"Père","v":"Roger Dupont"},"Fils",{"$f":"IF(NaissancePère<>0,NaissancePère,\"\")","v":"11 février 1948"},{"$f":"IF(LieuNaissancePère<>0,LieuNaissancePère,\"\")","v":"Lille, France"},{"$f":"IF(DécèsPère<>0,DécèsPère,\"\")","v":""},{"$f":"IF(LieuDécèsPère<>0,LieuDécèsPère,\"\")","v":""}]
[null,null,"Bernard Dupont","Fils","28 mars 1952","Paris, France"]
[null,null,"Denise Dupont","Fille","30 mars 1955","Paris, France"]
[null,null,"Nouveau-né Dupont","Fils","20 novembre 1960","Paris, France","23 novembre 1960","Paris, France"]

{"sheet":"Grands-parents maternels","index":3,"n_rows":32,"n_cols":8,"rows_kept":32,"merged":[[9,1,9,3],[9,5,9,7],[10,2,10,3],[10,6,10,7],[11,2,11,3],[11,6,11,7],[12,2,12,3],[12,6,12,7],[13,2,13,3],[14,2,14,3],[14,6,14,7],[15,2,15,3],[15,6,15,7],[20,1,20,7],[21,1,21,7],[22,1,22,7],[23,1,23,7],[24,1,24,7],[25,1,25,7],[26,1,26,7]]}
[null,{"$f":"NomArbre","v":"Dupont - Jensen"}]
[null,"ARBRE GÉNÉALOGIQUE"]
[]
[]
[null,"PARENTS DU PÈRE",{"$nulls":3},"PARENTS DE LA MÈRE"]
[]
[]
[]
[]
[null,{"$f":"\"Père: \"&GrandPèreMaternel","v":"Père: Thomas Søndergaard Jensen"},{"$nulls":3},{"$f":"\"Mère: \"&GrandMèreMaternelle","v":"Mère: Charlotte Louis"}]
[null,null,"NAISSANCE",{"$nulls":3},"NAISSANCE"]
[null,null,"13 décembre 1926",{"$nulls":3},"27 septembre 1932"]
[null,null,"Danemark",{"$nulls":3},"Danemark"]
[null,null,"DÉCÈS",{"$nulls":3},"DÉCÈS"]
[null,null,"24 janvier 2006"]
[null,null,"Paris, France"]
[]
[]
[]
[null," Notes"]
{"$rows_empty":8}
[null,"ENFANTS","NOM","LIENS","NAISSANCE","LIEU DE NAISSANCE","DÉCÈS","LIEU DE DÉCÈS"]
[null,null,{"$f":"Mère","v":"Christiane Rønnow Jensen"},"Fille",{"$f":"IF(NaissanceMère<>0,NaissanceMère,\"\")","v":"13 février 1953"},{"$f":"IF(LieuNaissanceMère<>0,LieuNaissanceMère,\"\")","v":"Danemark"},{"$f":"IF(DécèsMère<>0,DécèsMère,\"\")","v":""},{"$f":"IF(LieuDécèsMère<>0,LieuDécèsMère,\"\")","v":""}]
[null,null,"Erik Jensen","Fils","18 octobre 1956","Paris, France","17 septembre 1970","Paris, France"]
[null,null,"Henrik Jensen","Fils","2 janvier 1957","Paris, France"]

{"sheet":"Arrière-grands-parents pater. 1","index":4,"n_rows":35,"n_cols":8,"rows_kept":35,"merged":[[9,1,9,3],[9,5,9,7],[10,2,10,3],[10,6,10,7],[11,2,11,3],[11,6,11,7],[12,2,12,3],[12,6,12,7],[13,2,13,3],[14,2,14,3],[14,6,14,7],[15,2,15,3],[15,6,15,7],[20,1,20,7],[21,1,21,7],[22,1,22,7],[23,1,23,7],[24,1,24,7],[25,1,25,7],[26,1,26,7]]}
[null,{"$f":"NomArbre","v":"Dupont - Jensen"}]
[null,"ARBRE GÉNÉALOGIQUE"]
[]
[]
[null,"PARENTS DU PÈRE",{"$nulls":3},"PARENTS DE LA MÈRE"]
[]
[]
[]
[]
[null,{"$f":"\"Père: \"&ArrièreGrandPèrePaternel1","v":"Père: Arrière-grand-père paternel 1   "},{"$nulls":3},{"$f":"\"Mère: \"&ArrièreGrandMèrePaternelle1","v":"Mère: Arrière-grand-mère paternelle 1 "}]
[null,null,"NAISSANCE",{"$nulls":3},"NAISSANCE"]
[]
[]
[null,null,"DÉCÈS",{"$nulls":3},"DÉCÈS"]
[]
[]
[]
[]
[]
[null," Notes"]
{"$rows_empty":8}
[null,"ENFANTS","NOM","LIENS","NAISSANCE","LIEU DE NAISSANCE","DÉCÈS","LIEU DE DÉCÈS"]
[null,null,{"$f":"GrandPèrePaternel","v":"Jean-François Dupont"},"Fils",{"$f":"IF(NaissanceGrandPèrePaternel<>0,NaissanceGrandPèrePaternel,\"\")","v":"3 mars 1906"},{"$f":"IF(LieuNaissanceGrandPèrePaternel<>0,LieuNaissanceGrandPèrePaternel,\"\")","v":"Lille, France"},{"$f":"IF(DécèsGrandPèrePaternel<>0,DécèsGrandPèrePaternel,\"\")","v":"17 juin 1991"},{"$f":"IF(LieuDécèsGrandPèrePaternel<>0,LieuDécèsGrandPèrePaternel,\"\")","v":"Paris, France"}]
[null,null,"Jean-François Dupont"]
[null,null,"Jean-François Dupont"]
[null,null,"Jean-François Dupont"]
[null,null,"Jean-François Dupont"]
[null,null,"Jean-François Dupont"]

{"sheet":"Arrière-grands-parents pater. 2","index":5,"n_rows":35,"n_cols":8,"rows_kept":35,"merged":[[9,1,9,3],[9,5,9,7],[10,2,10,3],[10,6,10,7],[11,2,11,3],[11,6,11,7],[12,2,12,3],[12,6,12,7],[13,2,13,3],[14,2,14,3],[14,6,14,7],[15,2,15,3],[15,6,15,7],[20,1,20,7],[21,1,21,7],[22,1,22,7],[23,1,23,7],[24,1,24,7],[25,1,25,7],[26,1,26,7]]}
[null,{"$f":"NomArbre","v":"Dupont - Jensen"}]
[null,"ARBRE GÉNÉALOGIQUE"]
[]
[]
[null,"PARENTS DU PÈRE",{"$nulls":3},"PARENTS DE LA MÈRE"]
[]
[]
[]
[]
[null,{"$f":"\"Père: \"&ArrièreGrandPèrePaternel2","v":"Père: Arrière-grand-père paternel 2   "},{"$nulls":3},{"$f":"\"Mère: \"&ArrièreGrandMèrePaternelle2","v":"Mère: Arrière-grand-mère paternelle 2 "}]
[null,null,"NAISSANCE",{"$nulls":3},"NAISSANCE"]
[]
[]
[null,null,"DÉCÈS",{"$nulls":3},"DÉCÈS"]
[]
[]
[]
[]
[]
[null," Notes"]
{"$rows_empty":8}
[null,"ENFANTS","NOM","LIENS","NAISSANCE","LIEU DE NAISSANCE","DÉCÈS","LIEU DE DÉCÈS"]
[null,null,{"$f":"GrandMèrePaternelle","v":"Laure Goudiard du Mesnil"},"Fille",{"$f":"IF(NaissanceGrandMèrePaternelle<>0,NaissanceGrandMèrePaternelle,\"\")","v":"11 novembre 1925"},{"$f":"IF(LieuNaissanceGrandMèrePaternelle<>0,LieuNaissanceGrandMèrePaternelle,\"\")","v":"France"},{"$f":"IF(DécèsGrandMèrePaternelle<>0,DécèsGrandMèrePaternelle,\"\")","v":"4 mars 2005"},{"$f":"IF(LieuDécèsGrandMèrePaternelle<>0,LieuDécèsGrandMèrePaternelle,\"\")","v":"Paris, France"}]
[null,null,"Laure Goudiard du Mesnil"]
[null,null,"Laure Goudiard du Mesnil"]
[null,null,"Laure Goudiard du Mesnil"]
[null,null,"Laure Goudiard du Mesnil"]
[null,null,"Laure Goudiard du Mesnil"]

{"sheet":"Arrière-grands-parents mater. 1","index":6,"n_rows":35,"n_cols":8,"rows_kept":35,"merged":[[9,1,9,3],[9,5,9,7],[10,2,10,3],[10,6,10,7],[11,2,11,3],[11,6,11,7],[12,2,12,3],[12,6,12,7],[13,2,13,3],[14,2,14,3],[14,6,14,7],[15,2,15,3],[15,6,15,7],[20,1,20,7],[21,1,21,7],[22,1,22,7],[23,1,23,7],[24,1,24,7],[25,1,25,7],[26,1,26,7]]}
[null,{"$f":"NomArbre","v":"Dupont - Jensen"}]
[null,"ARBRE GÉNÉALOGIQUE"]
[]
[]
[null,"PARENTS DU PÈRE",{"$nulls":3},"PARENTS DE LA MÈRE"]
[]
[]
[]
[]
[null,{"$f":"\"Father: \"&ArrièreGrandPèreMaternel1","v":"Father: Arrière-grand-père maternel 1  "},{"$nulls":3},{"$f":"\"Père: \"&ArrièreGrandMèreMaternelle_1","v":"Père: Arrière-grand-mère maternelle 1 "}]
[null,null,"NAISSANCE",{"$nulls":3},"NAISSANCE"]
[]
[]
[null,null,"DÉCÈS",{"$nulls":3},"DÉCÈS"]
[]
[]
[]
[]
[]
[null," Notes"]
{"$rows_empty":8}
[null,"ENFANTS","NOM","LIENS","NAISSANCE","LIEU DE NAISSANCE","DÉCÈS","LIEU DE DÉCÈS"]
[null,null,{"$f":"GrandPèreMaternel","v":"Thomas Søndergaard Jensen"},"Fils",{"$f":"IF(NaissanceGrandPèreMaternel<>0,NaissanceGrandPèreMaternel,\"\")","v":"13 décembre 1926"},{"$f":"IF(LieuNaissanceGrandPèreMaternel<>0,LieuNaissanceGrandPèreMaternel,\"\")","v":"Danemark"},{"$f":"IF(DécèsGrandPèreMaternel<>0,DécèsGrandPèreMaternel,\"\")","v":"24 janvier 2006"},{"$f":"IF(LieuDécèsGrandPèreMaternel<>0,LieuDécèsGrandPèreMaternel,\"\")","v":"Paris, France"}]
[null,null,"Thomas Søndergaard Jensen"]
[null,null,"Thomas Søndergaard Jensen"]
[null,null,"Thomas Søndergaard Jensen"]
[null,null,"Thomas Søndergaard Jensen"]
[null,null,"Thomas Søndergaard Jensen"]

{"sheet":"Arrière-grands-parents mater. 2","index":7,"n_rows":35,"n_cols":8,"rows_kept":35,"merged":[[9,1,9,3],[9,5,9,7],[10,2,10,3],[10,6,10,7],[11,2,11,3],[11,6,11,7],[12,2,12,3],[12,6,12,7],[13,2,13,3],[14,2,14,3],[14,6,14,7],[15,2,15,3],[15,6,15,7],[20,1,20,7],[21,1,21,7],[22,1,22,7],[23,1,23,7],[24,1,24,7],[25,1,25,7],[26,1,26,7]]}
[null,{"$f":"NomArbre","v":"Dupont - Jensen"}]
[null,"ARBRE GÉNÉALOGIQUE"]
[]
[]
[null,"PARENTS DU PÈRE",{"$nulls":3},"PARENTS DE LA MÈRE"]
[]
[]
[]
[]
[null,{"$f":"\"Père: \"&ArrièreGrandPèreMaternel2","v":"Père: Arrière-grand-père maternel 2  "},{"$nulls":3},{"$f":"\"Mère: \"&ArrièreGrandMèreMaternelle_2","v":"Mère: Arrière-grand-mère maternelle 2 "}]
[null,null,"NAISSANCE",{"$nulls":3},"NAISSANCE"]
[]
[]
[null,null,"DÉCÈS",{"$nulls":3},"DÉCÈS"]
[]
[]
[]
[]
[]
[null," Notes"]
{"$rows_empty":8}
[null,"ENFANTS","NOM","LIENS","NAISSANCE","LIEU DE NAISSANCE","DÉCÈS","LIEU DE DÉCÈS"]
[null,null,{"$f":"GrandMèreMaternelle","v":"Charlotte Louis"},"Fille",{"$f":"IF(NaissanceGrandMèreMaternelle<>0,NaissanceGrandMèreMaternelle,\"\")","v":"27 septembre 1932"},{"$f":"IF(LieuNaissanceGrandMèreMaternelle<>0,LieuNaissanceGrandMèreMaternelle,\"\")","v":"Danemark"},{"$f":"IF(DécèsGrandMèreMaternelle<>0,DécèsGrandMèreMaternelle,\"\")","v":""},{"$f":"IF(LieuDécèsGrandMèreMaternelle<>0,LieuDécèsGrandMèreMaternelle,\"\")","v":""}]
[null,null,"Charlotte Louis"]
[null,null,"Charlotte Louis"]
[null,null,"Charlotte Louis"]
[null,null,"Charlotte Louis"]
[null,null,"Charlotte Louis"]